fUST/lending_fUST_20250519
["ID","MTS","AMOUNT","RATE_DAILY","PERIOD"]
[361650286,1747665042579,-443.45,0.00024657,4]
[361650287,1747665042590,-430.0,0.00024657,4]
[361650288,1747665042599,-494.52,0.00024657,4]
[361650289,1747665042609,-430.0,0.00024657,4]
[361650290,1747665042619,-2608.95,0.00024657,4]
[361650291,1747665042629,-1711.88,0.00024657,4]
[361650292,1747665042639,-430.0,0.00024657,4]
[361650293,1747665042648,-991.32,0.00024657,4]
[361650294,1747665042759,-430.0,0.00024657,4]
[361650295,1747665042785,-430.0,0.00024657,4]
[361650296,1747665042794,-430.0,0.00024657,4]
[361650297,1747665042804,-550.17,0.00024657,4]
[361650298,1747665042814,-583.98,0.00024657,4]
[361650299,1747665042823,-727.51,0.00024657,4]
[361650300,1747665042833,-430.0,0.00024657,4]
[361650301,1747665042843,-668.32,0.00024657,4]
[361650303,1747665042853,-517.77,0.00024657,4]
[361650305,1747665042863,-1192.33,0.00024657,4]
[361650307,1747665042872,-942.66,0.00024657,4]
[361650309,1747665042891,-592.12,0.00024657,4]
[361650311,1747665042902,-430.0,0.00024657,4]
[361650313,1747665042912,-430.0,0.00024657,4]
[361650315,1747665042923,-430.0,0.00024657,4]
[361650317,1747665042934,-550.37,0.00024657,4]
[361650320,1747665042944,-1093.29,0.00024657,4]
[361650322,1747665042954,-430.0,0.00024657,4]
[361650324,1747665042966,-431.5,0.00024657,4]
[361650325,1747665042976,-430.0,0.00024657,4]
[361650326,1747665042985,-692.16,0.00024657,4]
[361650327,1747665042996,-430.0,0.00024657,4]
[361650328,1747665043006,-931.52,0.00024657,4]
[361650330,1747665043017,-430.0,0.00024657,4]
[361650331,1747665043027,-380.0,0.00024658,2]
[361650332,1747665043038,-470.3209537,0.00024658,2]
[361650333,1747665043049,-734.51274076,0.00024729,2]
[361650334,1747665043060,-1000.0,0.00024735,2]
[361650335,1747665043072,-151.55173306,0.00024784,2]
[361650336,1747665043082,-430.0,0.00024794,4]
[361650337,1747665043092,-430.0,0.00024794,4]
[361650338,1747665043102,-762.02,0.00024794,4]
[361650339,1747665043111,-430.0,0.00024794,4]
[361650340,1747665043121,-430.0,0.00024794,4]
[361650341,1747665043131,-430.0,0.00024794,4]
[361650342,1747665043140,-430.0,0.00024794,4]
[361650343,1747665043151,-430.0,0.00024794,4]
[361650344,1747665043160,-430.0,0.00024794,4]
[361650345,1747665043171,-430.0,0.00024794,4]
[361650346,1747665043181,-430.0,0.00024794,4]
[361650347,1747665043191,-2714.42,0.00024794,4]
[361650348,1747665043201,-2986.87,0.00024794,4]
[361650349,1747665043211,-557.31,0.00024794,4]
[361650350,1747665043221,-430.0,0.00024794,4]
[361650351,1747665043232,-430.0,0.00024794,4]
[361650352,1747665043242,-432.31,0.00024794,4]
[361650353,1747665043252,-722.42,0.00024794,4]
[361650354,1747665043262,-430.0,0.00024794,4]
[361650356,1747665043272,-430.0,0.00024794,4]
[361650358,1747665043281,-709.39,0.00024794,4]
[361650359,1747665043290,-776.13,0.00024794,4]
[361650360,1747665043300,-430.0,0.00024794,4]
[361650361,1747665043310,-2674.71,0.00024794,4]
[361650362,1747665043319,-1453.46,0.00024794,4]
[361650363,1747665043329,-599.92,0.00024794,4]
[361650364,1747665043339,-550.29764005,0.00024794,4]
[361650365,1747665043348,-430.0,0.00024794,4]
[361650366,1747665043358,-896.9,0.00024794,4]
[361650367,1747665043369,-430.0,0.00024794,4]
[361650368,1747665043379,-2156.53,0.00024794,4]
[361650369,1747665043392,-443.45,0.00024794,4]
[361650370,1747665043404,-430.0,0.00024794,4]
[361650371,1747665043414,-494.52,0.00024794,4]
[361650372,1747665043424,-2608.95,0.00024794,4]
[361650373,1747665043435,-430.0,0.00024794,4]
[361650374,1747665043454,-1711.88,0.00024794,4]
[361650375,1747665043465,-430.0,0.00024794,4]
[361650376,1747665043475,-991.32,0.00024794,4]
[361650377,1747665043485,-430.0,0.00024794,4]
[361650378,1747665043494,-430.0,0.00024794,4]
[361650379,1747665043503,-430.0,0.00024794,4]
[361650380,1747665043517,-550.17,0.00024794,4]
[361650381,1747665043527,-583.98,0.00024794,4]
[361650382,1747665043536,-727.51,0.00024794,4]
[361650383,1747665043546,-430.0,0.00024794,4]
[361650384,1747665043556,-668.32,0.00024794,4]
[361650385,1747665043566,-517.77,0.00024794,4]
[361650386,1747665043575,-1192.33,0.00024794,4]
[361650387,1747665043586,-942.66,0.00024794,4]
[361650389,1747665043595,-592.12,0.00024794,4]
[361650390,1747665043605,-430.0,0.00024794,4]
[361650391,1747665043615,-430.0,0.00024794,4]
[361650392,1747665043625,-430.0,0.00024794,4]
[361650393,1747665043636,-550.37,0.00024794,4]
[361650394,1747665043646,-1093.29,0.00024794,4]
[361650395,1747665043656,-201.79222318,0.00024794,4]
[361650396,1747665043667,-431.5,0.00024794,4]
[361650397,1747665043677,-430.0,0.00024794,4]
[361650398,1747665043688,-692.16,0.00024794,4]
[361650399,1747665043698,-430.0,0.00024794,4]
[361650400,1747665043707,-430.0,0.00024794,4]
[361650402,1747665043717,-931.52,0.00024794,4]
[361650404,1747665043727,-1278.0,0.000248,7]
[361650407,1747665043736,-2000.0,0.000248,2]
[361650410,1747665043746,-1000.0,0.000248,5]
[361650412,1747665043755,-72851.6740626,0.000248,2]
[361650413,1747665043765,-1000.0,0.0002482,5]
[361650415,1747665043776,-6854.38107044,0.00024828,3]
[361650417,1747665043785,-3630.81944219,0.00024828,2]
[361650418,1747665043796,-314.45853212,0.00024829,10]
[361650419,1747665043806,-422.59250115,0.00024829,3]
[361650420,1747665043816,-1488874.67215248,0.00024829,20]
[361650421,1747665044006,-430.0,0.00023835,4]
[361650422,1747665044015,-335.0,0.00023972,4]
[361650428,1747665090799,200.0,0.0002489,120]
[361650433,1747665150826,200.0,0.00026728,120]
[361650458,1747665409655,1261.53795928,0.00027397,120]
[361650568,1747665806244,315.338619,0.00027397,120]
[361650691,1747665948749,2240.55,0.00024804,30]
[361651138,1747666232661,-5000.0,0.00013264,2]
[361651139,1747666232671,-300.0,0.00013399,2]
[361651140,1747666232682,-300.0,0.00013399,2]
[361651141,1747666232696,-1200.0,0.00013399,2]
[361651142,1747666232706,-7396.0,0.000134,2]
[361651143,1747666232716,-158.088339,0.00013699,2]
[361651144,1747666232725,-407.0,0.00014688,2]
[361651145,1747666232735,-203.37789931,0.000149,2]
[361651146,1747666232744,-203.37789922,0.00015426,2]
[361651147,1747666232755,-203.37789922,0.00015953,2]
[361651148,1747666232765,-203.37789922,0.00016479,2]
[361651149,1747666232774,-203.37789922,0.00017005,2]
[361651150,1747666232784,-203.37789922,0.00017532,2]
[361651151,1747666232795,-203.37789922,0.00018058,2]
[361651152,1747666232804,-203.37789922,0.00018584,2]
[361651153,1747666232814,-203.37789922,0.00019111,2]
[361651154,1747666232823,-203.37789922,0.00019637,2]
[361651155,1747666232833,-203.37789922,0.00020163,2]
[361651156,1747666232842,-203.37789922,0.00020689,3]
[361651157,1747666232851,-158.088339,0.00020951,2]
[361651158,1747666232860,-203.37789922,0.00021216,4]
[361651159,1747666232869,-203.37789922,0.00021742,5]
[361651160,1747666232879,-797.91,0.00022067,4]
[361651161,1747666232888,-797.91,0.00022167,6]
[361651162,1747666232897,-151.0,0.00022219,2]
[361651163,1747666232906,-207.4,0.00022219,2]
[361651164,1747666232916,-797.91,0.00022267,6]
[361651165,1747666232935,-203.37789922,0.00022268,6]
[361651166,1747666232948,-321.0,0.00022346,3]
[361651167,1747666232957,-715.0,0.00022348,3]
[361651168,1747666232967,-715.0,0.00022348,3]
[361651169,1747666232976,-170.0,0.00022348,3]
[361651170,1747666232986,-364.08220511,0.00022348,3]
[361651171,1747666232996,-797.91,0.00022367,6]
[361651172,1747666233005,-797.91,0.00022467,4]
[361651173,1747666233015,-356.59105408,0.00022567,4]
[361651174,1747666233034,-441.31894592,0.00022567,4]
[361651175,1747666233044,-797.91,0.00022667,3]
[361651176,1747666233053,-797.91,0.00022767,5]
[361651177,1747666233063,-203.37789922,0.00022795,7]
[361651178,1747666233074,-26.48315486,0.00022867,7]
[361651179,1747666233086,-771.42684514,0.00022867,7]
[361651180,1747666233095,-797.91,0.00022967,2]
[361651181,1747666233105,-797.91,0.00023067,4]
[361651182,1747666233116,-797.91,0.00023167,3]
[361651183,1747666233125,-797.91,0.00023267,3]
[361651184,1747666233135,-150.0,0.0002328,2]
[361651185,1747666233145,-203.37789922,0.00023321,9]
[361651186,1747666233155,-364.09048094,0.00023367,6]
[361651202,1747666238476,-433.81951906,0.00023367,6]
[361651204,1747666238486,-797.91,0.00023467,3]
[361651206,1747666238496,-797.91,0.00023567,6]
[361651207,1747666238506,-151.45521363,0.00023588,2]
[361651208,1747666238515,-797.91,0.00023667,5]
[361651209,1747666238524,-151.53083472,0.00023735,2]
[361651210,1747666238534,-797.91,0.00023767,5]
[361651211,1747666238544,-500.0,0.00023834,2]
[361651212,1747666238554,-236.88477286,0.00023834,2]
[361651213,1747666238563,-630.22872519,0.00023834,2]
[361651214,1747666238573,-562.7722574,0.00023834,2]
[361651215,1747666238582,-500.0,0.00023834,2]
[361651216,1747666238591,-500.0,0.00023834,2]
[361651217,1747666238601,-500.0,0.00023834,2]
[361651218,1747666238610,-500.0,0.00023834,2]
[361651219,1747666238620,-427.14561946,0.00023834,2]
[361651221,1747666238630,-500.0,0.00023834,2]
[361651222,1747666238639,-500.0,0.00023834,2]
[361651223,1747666238648,-221.20682427,0.00023834,2]
[361651224,1747666238659,-500.0,0.00023834,2]
[361651225,1747666238668,-500.0,0.00023834,2]
[361651226,1747666238679,-500.0,0.00023834,2]
[361651227,1747666238689,-500.0,0.00023834,2]
[361651228,1747666238701,-447.71485322,0.00023834,2]
[361651229,1747666238710,-500.0,0.00023834,2]
[361651230,1747666238720,-500.0,0.00023834,2]
[361651231,1747666238729,-645.0,0.00023834,2]
[361651232,1747666238739,-400.0,0.00023835,4]
[361651233,1747666238748,-400.0,0.00023835,4]
[361651234,1747666238758,-430.0,0.00023835,4]
[361651235,1747666238773,-430.0,0.00023835,4]
[361651236,1747666238783,-517.30722969,0.00023835,4]
[361651237,1747666238793,-430.0,0.00023835,4]
[361651238,1747666238803,-500.0,0.00023835,4]
[361651239,1747666238813,-430.0,0.00023835,4]
[361651240,1747666238823,-430.0,0.00023835,4]
[361651241,1747666238833,-430.0,0.00023835,4]
[361651242,1747666238844,-500.0,0.00023835,4]
[361651243,1747666238854,-400.0,0.00023835,4]
[361651245,1747666238867,-430.0,0.00023835,4]
[361651246,1747666238877,-501.28122029,0.00023835,4]
[361651247,1747666238886,-430.0,0.00023835,4]
[361651248,1747666238896,-430.0,0.00023835,4]
[361651249,1747666238906,-400.0,0.00023835,4]
[361651250,1747666238915,-430.0,0.00023835,4]
[361651251,1747666238925,-430.0,0.00023835,4]
[361651252,1747666238935,-430.0,0.00023835,4]
[361651253,1747666238948,-430.0,0.00023835,4]
[361651254,1747666238958,-400.0,0.00023835,4]
[361651255,1747666238967,-356.24062358,0.00023835,4]
[361651256,1747666238977,-400.0,0.00023835,4]
[361651257,1747666238987,-430.0,0.00023835,4]
[361651258,1747666238996,-507.56,0.00023835,4]
[361651259,1747666239006,-400.0,0.00023835,4]
[361651260,1747666239016,-430.0,0.00023835,4]
[361651261,1747666239026,-400.0,0.00023835,4]
[361651262,1747666239036,-200.0,0.00023835,4]
[361651263,1747666239045,-400.0,0.00023835,4]
[361651264,1747666239055,-506.08208493,0.00023835,4]
[361651265,1747666239065,-400.42726605,0.00023835,4]
[361651266,1747666239075,-430.0,0.00023835,4]
[361651267,1747666239084,-400.0,0.00023835,4]
[361651269,1747666239094,-400.0,0.00023835,4]
[361651270,1747666239103,-430.0,0.00023835,4]
[361651271,1747666239112,-500.0,0.00023835,4]
[361651272,1747666239122,-505.73193461,0.00023835,4]
[361651273,1747666239131,-400.0,0.00023835,4]
[361651275,1747666239142,-400.0,0.00023835,4]
[361651276,1747666239151,-430.0,0.00023835,4]
[361651277,1747666239161,-400.0,0.00023835,4]
[361651278,1747666239171,-430.0,0.00023835,4]
[361651279,1747666239181,-430.0,0.00023835,4]
[361651280,1747666239191,-430.0,0.00023835,4]
[361651281,1747666239202,-430.0,0.00023835,4]
[361651282,1747666239211,-430.0,0.00023835,4]
[361651283,1747666239221,-400.0,0.00023835,4]
[361651284,1747666239231,-255.26730144,0.00023835,4]
[361651285,1747666239242,-430.0,0.00023835,4]
[361651286,1747666239252,-430.0,0.00023835,4]
[361651287,1747666239263,-430.0,0.00023835,4]
[361651288,1747666239273,-430.0,0.00023835,4]
[361651289,1747666239283,-400.0,0.00023835,4]
[361651290,1747666239293,-430.0,0.00023835,4]
[361651291,1747666239303,-430.0,0.00023835,4]
[361651292,1747666239312,-430.0,0.00023835,4]
[361651294,1747666239322,-400.0,0.00023835,4]
[361651295,1747666239331,-430.0,0.00023835,4]
[361651296,1747666239341,-321.45371395,0.00023835,4]
[361651297,1747666239350,-430.0,0.00023835,4]
[361651298,1747666239499,-400.0,0.00023835,4]
[361651299,1747666239544,-224.73162541,0.00023835,4]
[361651300,1747666239554,-400.0,0.00023835,4]
[361651301,1747666239564,-430.0,0.00023835,4]
[361651303,1747666239573,-430.0,0.00023835,4]
[361651304,1747666239583,-430.0,0.00023835,4]
[361651305,1747666239592,-400.0,0.00023835,4]
[361651306,1747666239602,-430.0,0.00023835,4]
[361651307,1747666239611,-504.16894908,0.00023835,4]
[361651308,1747666239620,-502.74692449,0.00023835,4]
[361651309,1747666239630,-430.0,0.00023835,4]
[361651310,1747666239639,-400.0,0.00023835,4]
[361651311,1747666239649,-430.0,0.00023835,4]
[361651312,1747666239659,-503.29279151,0.00023835,4]
[361651313,1747666239669,-430.0,0.00023835,4]
[361651314,1747666239678,-400.0,0.00023835,4]
[361651315,1747666239688,-430.0,0.00023835,4]
[361651316,1747666239700,-400.0,0.00023835,4]
[361651317,1747666239710,-430.0,0.00023835,4]
[361651318,1747666239722,-300.0,0.00023835,4]
[361651319,1747666239732,-400.0,0.00023835,4]
[361651320,1747666239741,-500.0,0.00023835,4]
[361651321,1747666239751,-400.0,0.00023835,4]
[361651322,1747666239762,-430.0,0.00023835,4]
[361651323,1747666239773,-430.0,0.00023835,4]
[361651324,1747666239782,-430.0,0.00023835,4]
[361651325,1747666239792,-351.89463732,0.00023835,4]
[361651326,1747666239803,-501.19874312,0.00023835,4]
[361651327,1747666239812,-400.0,0.00023835,4]
[361651328,1747666239822,-430.0,0.00023835,4]
[361651329,1747666239831,-401.94791511,0.00023835,4]
[361651330,1747666239843,-430.0,0.00023835,4]
[361651331,1747666239853,-400.0,0.00023835,4]
[361651332,1747666239863,-430.0,0.00023835,4]
[361651333,1747666239873,-430.0,0.00023835,4]
[361651334,1747666239883,-400.0,0.00023835,4]
[361651335,1747666239893,-528.04361022,0.00023835,4]
[361651336,1747666239903,-430.0,0.00023835,4]
[361651337,1747666239913,-400.0,0.00023835,4]
[361651338,1747666239923,-430.0,0.00023835,4]
[361651339,1747666239933,-200.83534951,0.00023835,4]
[361651340,1747666239945,-430.0,0.00023835,4]
[361651341,1747666239955,-430.0,0.00023835,4]
[361651342,1747666239964,-430.0,0.00023835,4]
[361651343,1747666239974,-400.0,0.00023835,4]
[361651344,1747666239984,-430.0,0.00023835,4]
[361651345,1747666239994,-430.0,0.00023835,4]
[361651346,1747666240004,-500.0,0.00023835,4]
[361651347,1747666240013,-500.0,0.00023835,4]
[361651348,1747666240023,-536.71112375,0.00023835,4]
[361651349,1747666240033,-430.0,0.00023835,4]
[361651350,1747666240042,-430.0,0.00023835,4]
[361651351,1747666240052,-430.0,0.00023835,4]
[361651352,1747666240061,-500.0,0.00023835,4]
[361651353,1747666240071,-430.0,0.00023835,4]
[361651354,1747666240081,-430.0,0.00023835,4]
[361651355,1747666240091,-430.0,0.00023835,4]
[361651356,1747666240100,-430.0,0.00023835,4]
[361651357,1747666240110,-302.94783816,0.00023835,4]
[361651358,1747666240120,-500.0,0.00023835,4]
[361651359,1747666240129,-400.0,0.00023835,4]
[361651360,1747666240139,-400.0,0.00023835,4]
[361651361,1747666240149,-400.0,0.00023835,4]
[361651362,1747666240159,-430.0,0.00023835,4]
[361651364,1747666240169,-400.0,0.00023835,4]
[361651366,1747666240178,-500.0,0.00023835,4]
[361651368,1747666240188,-400.0,0.00023835,4]
[361651370,1747666240198,-283.39595118,0.00023835,4]
[361651372,1747666240208,-500.0,0.00023835,4]
[361651374,1747666240217,-400.0,0.00023835,4]
[361651376,1747666240227,-400.0,0.00023835,4]
[361651378,1747666240236,-400.0,0.00023835,4]
[361651380,1747666240246,-203.44410118,0.00023835,4]
[361651382,1747666240256,-415.59327419,0.00023835,4]
[361651383,1747666240266,-400.0,0.00023835,4]
[361651386,1747666240275,-400.0,0.00023835,4]
[361651388,1747666240285,-400.0,0.00023835,4]
[361651389,1747666240294,-400.0,0.00023835,4]
[361651390,1747666240304,-500.0,0.00023835,4]
[361651391,1747666240313,-400.0,0.00023835,4]
[361651392,1747666240323,-500.0,0.00023835,4]
[361651393,1747666240332,-400.0,0.00023835,4]
[361651394,1747666240342,-500.0,0.00023835,4]
[361651395,1747666240352,-430.0,0.00023835,4]
[361651396,1747666240362,-400.0,0.00023835,4]
[361651397,1747666240371,-400.0,0.00023835,4]
[361651398,1747666240381,-500.0,0.00023835,4]
[361651399,1747666240391,-500.0,0.00023835,4]
[361651400,1747666240400,-430.0,0.00023835,4]
[361651401,1747666240410,-500.76749215,0.00023835,4]
[361651402,1747666240420,-500.0,0.00023835,4]
[361651403,1747666240430,-500.47142295,0.00023835,4]
[361651404,1747666240440,-500.0,0.00023835,4]
[361651405,1747666240450,-400.0,0.00023835,4]
[361651406,1747666240460,-513.6034958,0.00023835,4]
[361651407,1747666240470,-500.0,0.00023835,4]
[361651408,1747666240480,-500.0,0.00023835,4]
[361651409,1747666240490,-503.577723,0.00023835,4]
[361651410,1747666240499,-500.0,0.00023835,4]
[361651411,1747666240509,-500.0,0.00023835,4]
[361651412,1747666240518,-400.0,0.00023835,4]
[361651413,1747666240527,-400.0,0.00023835,4]
[361651415,1747666240537,-500.0,0.00023835,4]
[361651417,1747666240546,-400.0,0.00023835,4]
[361651419,1747666240556,-400.0,0.00023835,4]
[361651421,1747666240565,-400.0,0.00023835,4]
[361651422,1747666240575,-380.36630665,0.00023835,4]
[361651424,1747666240585,-400.0,0.00023835,4]
[361651425,1747666240595,-500.0,0.00023835,4]
[361651426,1747666240605,-518.38791413,0.00023835,4]
[361651427,1747666240615,-400.0,0.00023835,4]
[361651428,1747666240624,-500.0,0.00023835,4]
[361651429,1747666240634,-503.58232279,0.00023835,4]
[361651430,1747666240644,-430.0,0.00023835,4]
[361651432,1747666240653,-500.0,0.00023835,4]
[361651433,1747666240663,-430.0,0.00023835,4]
[361651434,1747666240673,-500.0,0.00023835,4]
[361651435,1747666240683,-500.0,0.00023835,4]
[361651437,1747666240693,-500.0,0.00023835,4]
[361651439,1747666240702,-430.0,0.00023835,4]
[361651441,1747666240712,-400.0,0.00023835,4]
[361651442,1747666240721,-400.0,0.00023835,4]
[361651443,1747666240731,-520.25376624,0.00023835,4]
[361651444,1747666240740,-400.0,0.00023835,4]
[361651445,1747666240750,-163.29871286,0.00023835,4]
[361651446,1747666240762,-430.0,0.00023835,4]
[361651447,1747666240772,-279.953467,0.00023835,4]
[361651448,1747666240794,-150.046533,0.00023835,4]
[361651449,1747666240804,-400.0,0.00023835,4]
[361651450,1747666240813,-89.953467,0.00023835,4]
[361651451,1747666240888,-340.046533,0.00023835,4]
[361651452,1747666240898,-400.0,0.00023835,4]
[361651453,1747666240907,-540.21867292,0.00023835,4]
[361651454,1747666240916,-400.0,0.00023835,4]
[361651455,1747666240925,-500.0,0.00023835,4]
[361651456,1747666240935,-430.0,0.00023835,4]
[361651457,1747666240944,-487.40957127,0.00023835,4]
[361651458,1747666240956,-500.0,0.00023835,4]
[361651459,1747666240965,-430.0,0.00023835,4]
[361651460,1747666240975,-542.83,0.00023835,4]
[361651461,1747666240985,-430.0,0.00023835,4]
[361651463,1747666240994,-400.0,0.00023835,4]
[361651464,1747666241005,-505.06186109,0.00023835,4]
[361651465,1747666241014,-400.0,0.00023835,4]
[361651466,1747666241026,-500.0,0.00023835,4]
[361651467,1747666241035,-500.0,0.00023835,4]
[361651468,1747666241045,-500.13,0.00023835,4]
[361651469,1747666241055,-500.0,0.00023835,4]
[361651470,1747666241065,-509.56,0.00023835,4]
[361651471,1747666241075,-500.0,0.00023835,4]
[361651472,1747666241096,-430.0,0.00023835,4]
[361651473,1747666241108,-400.0,0.00023835,4]
[361651474,1747666241118,-430.0,0.00023835,4]
[361651475,1747666241128,-400.0,0.00023835,4]
[361651476,1747666241139,-400.0,0.00023835,4]
[361651477,1747666241148,-430.0,0.00023835,4]
[361651478,1747666241159,-430.0,0.00023835,4]
[361651479,1747666241169,-430.0,0.00023835,4]
[361651480,1747666241179,-200.1904558,0.00023835,4]
[361651481,1747666241189,-500.0,0.00023835,4]
[361651482,1747666241198,-430.0,0.00023835,4]
[361651483,1747666241208,-430.0,0.00023835,4]
[361651484,1747666241218,-400.0,0.00023835,4]
[361651485,1747666241228,-353.07838843,0.00023835,4]
[361651486,1747666241243,-76.92161157,0.00023835,4]
[361651487,1747666241253,-430.0,0.00023835,4]
[361651488,1747666241262,-335.36600046,0.00023835,4]
[361651489,1747666241272,-23.88412549,0.00023835,4]
[361651490,1747666241284,-406.11587451,0.00023835,4]
[361651491,1747666241294,-500.0,0.00023835,4]
[361651492,1747666241304,-400.0,0.00023835,4]
[361651494,1747666241314,-430.0,0.00023835,4]
[361651495,1747666241323,-400.0,0.00023835,4]
[361651497,1747666241333,-500.0,0.00023835,4]
[361651498,1747666241343,-400.0,0.00023835,4]
[361651499,1747666241353,-500.0,0.00023835,4]
[361651500,1747666241362,-416.81241101,0.00023835,4]
[361651501,1747666241380,-262.14758899,0.00023835,4]
[361651502,1747666241389,-500.0,0.00023835,4]
[361651503,1747666241399,-977.02,0.00023835,4]
[361651504,1747666241409,-977.02,0.00023835,4]
[361651505,1747666241419,-977.02,0.00023835,4]
[361651506,1747666241428,-977.02,0.00023835,4]
[361651507,1747666241438,-977.02,0.00023835,4]
[361651508,1747666241448,-977.02,0.00023835,4]
[361651509,1747666241458,-400.08,0.00023835,4]
[361651510,1747666241468,-977.02,0.00023835,4]
[361651511,1747666241478,-977.02,0.00023835,4]
[361651512,1747666241489,-977.02,0.00023835,4]
[361651513,1747666241498,-977.02,0.00023835,4]
[361651514,1747666241508,-977.02,0.00023835,4]
[361651515,1747666241518,-400.0,0.00023835,4]
[361651516,1747666241528,-400.0,0.00023835,4]
[361651517,1747666241537,-430.0,0.00023835,4]
[361651518,1747666241547,-500.0,0.00023835,4]
[361651519,1747666241556,-479.72210351,0.00023835,4]
[361651520,1747666241566,-500.0,0.00023835,4]
[361651521,1747666241575,-400.0,0.00023835,4]
[361651522,1747666241584,-430.0,0.00023835,4]
[361651523,1747666241594,-1000.0,0.00023835,4]
[361651524,1747666241603,-400.0,0.00023835,4]
[361651525,1747666241612,-444.26673282,0.00023835,4]
[361651526,1747666241621,-501.22327453,0.00023835,4]
[361651527,1747666241631,-400.0,0.00023835,4]
[361651528,1747666241640,-500.0,0.00023835,4]
[361651529,1747666241649,-400.0,0.00023835,4]
[361651530,1747666241658,-400.0,0.00023835,4]
[361651531,1747666241668,-400.0,0.00023835,4]
[361651532,1747666241677,-406.69462422,0.00023835,4]
[361651533,1747666241687,-400.0,0.00023835,4]
[361651534,1747666241697,-430.0,0.00023835,4]
[361651535,1747666241707,-500.0,0.00023835,4]
[361651536,1747666241716,-400.0,0.00023835,4]
[361651537,1747666241725,-341.05019019,0.00023835,4]
[361651538,1747666241735,-500.0,0.00023835,4]
[361651539,1747666241744,-430.0,0.00023835,4]
[361651540,1747666241754,-400.0,0.00023835,4]
[361651541,1747666241765,-400.0,0.00023835,4]
[361651542,1747666241775,-430.0,0.00023835,4]
[361651543,1747666241784,-400.0,0.00023835,4]
[361651544,1747666241794,-402.57139129,0.00023835,4]
[361651545,1747666241804,-400.0,0.00023835,4]
[361651546,1747666241814,-430.0,0.00023835,4]
[361651547,1747666241823,-500.0,0.00023835,4]
[361651548,1747666241834,-430.0,0.00023835,4]
[361651549,1747666241844,-500.0,0.00023835,4]
[361651550,1747666241854,-430.0,0.00023835,4]
[361651551,1747666241863,-400.0,0.00023835,4]
[361651552,1747666241873,-400.0,0.00023835,4]
[361651553,1747666241882,-400.0,0.00023835,4]
[361651554,1747666241891,-400.0,0.00023835,4]
[361651555,1747666241902,-430.0,0.00023835,4]
[361651556,1747666241911,-430.0,0.00023835,4]
[361651557,1747666241921,-500.0,0.00023835,4]
[361651558,1747666241932,-400.0,0.00023835,4]
[361651559,1747666241942,-473.17,0.00023835,4]
[361651560,1747666241955,-430.0,0.00023835,4]
[361651561,1747666241965,-430.0,0.00023835,4]
[361651562,1747666241976,-478.09028257,0.00023835,4]
[361651563,1747666241985,-400.0,0.00023835,4]
[361651564,1747666241995,-430.0,0.00023835,4]
[361651565,1747666242005,-400.0,0.00023835,4]
[361651566,1747666242016,-430.0,0.00023835,4]
[361651567,1747666242027,-430.0,0.00023835,4]
[361651568,1747666242037,-430.0,0.00023835,4]